[Event "44th Chess Olympiad Open 2022"]
[Site "Chennai"]
[Date "2022.08.08"]
[Round "10.18"]
[White "Lupulescu, Constantin"]
[Black "Docx, Stefan"]
[Result "1/2-1/2"]
[ECO "E92"]
[WhiteElo "2628"]
[BlackElo "2434"]
[Annotator "TA"]
[PlyCount "79"]
[EventDate "2022.07.29"]
[EventType "team-tourn"]
[EventCountry "IND"]
[SourceTitle "playchess.com"]
[Source "ChessBase"]
[SourceQuality "1"]
[WhiteTeam "Romania"]
[BlackTeam "Belgium"]
[WhiteTeamCountry "ROU"]
[BlackTeamCountry "BEL"]
[TimeControl "40/5400+30:1800+30"]

{[%evp 16,79,23,25,34,14,35,29,34,48,39,0,0,-111,-93,-152,-171,-234,-224,-226,-237,-235,-223,-221,-227,-225,-182,-175,-171,-172,-172,-176,-174,-172,-148,-227,-235,-283,-268,-265,-259,-255,-74,-73,-81,-81,0,0,0,0,0,0,0,-19,-8,-36,-31,-37,-22,-31,-28,-27,0,0,0,-11]} 1. d4 {[%emt 0:00:03]} Nf6 {[%emt 0:00:09]} 2. c4 {[%emt 0:00:03]} g6 {[%emt 0:00:24]} 3. Nc3 {[%emt 0:00:31]} Bg7 {[%emt 0:00:35]} 4. e4 {[%emt 0:00:18]} d6 {[%emt 0:00:08]} 5. Nf3 {[%emt 0:02:58]} O-O {[%emt 0:00:16]} 6. Be2 {[%emt 0:00:14]} e5 {[%emt 0:00:10]} 7. d5 {[%emt 0:00:29]} a5 {[%emt 0:00:31]} 8. Bg5 {[%emt 0:02:55]} h6 {[%emt 0:01:11]} 9. Be3 {[%emt 0:00:54]} Ng4 {[%emt 0:02:10] E92: King's Indian: Classical: 6 Be2 e5: 7 dxe5, 7 Be3 and Petrosian System without 7...Nbd7.} 10. Bd2 {[%emt 0:01:23]} f5 {[%emt 0:00:13]} 11. h3 {[%emt 0:09:35]} Nf6 {[%emt 0:00:47][%cal Bg4f6,Bf6e4,Be4c5][%mdl 32] White has an edge.} 12. exf5 {[%emt 0:00:11]} gxf5 {[%emt 0:00:21]} 13. Qc2 {[%emt 0:02:01][%cal Og2g4]} Na6 {[%emt 0:01:47] [#]} 14. O-O-O $146 {[%emt 0:01:25]} (14. g3 $11 {keeps the balance.}) ({Predecessor:} 14. a3 Nc5 15. O-O a4 16. Rad1 Bd7 17. Nh2 Nb3 18. Be1 Nd4 19. Qd2 f4 20. Nf3 Nxe2+ 21. Qxe2 {1-0 (100) Rous,D (2161)-Folk,P (2154) Czech Republic 2015}) 14... Nb4 $1 $17 {[%emt 0:05:57]} 15. Qb1 {[%emt 0:03:33]} (15. Qb3 $142) 15... Ne4 $1 {[%emt 0:00:22]} 16. Be1 {[%emt 0:06:52]} (16. Be3 $142) 16... Nc5 $19 {[%emt 0:02:40] Strongly threatening ...e4.} 17. Nd2 {[%emt 0:09:59]} Qg5 {[%emt 0:03:48]} 18. g3 {[%emt 0:05:05]} e4 {[%emt 0:00:12] Threatens to win with ...h5.} 19. h4 {[%emt 0:00:16]} Qe7 {[%emt 0:07:24] Hoping for ...e3.} 20. Nb3 {[%emt 0:01:37]} Ncd3+ {[%emt 0:02:02]} 21. Bxd3 {[%emt 0:00:15]} Nxd3+ {[%emt 0:00:04]} 22. Rxd3 {[%emt 0:00:05]} exd3 {[%emt 0:00:10]} 23. Qxd3 {[%emt 0:01:22]} f4 {[%emt 0:01:37]} 24. Nd4 {[%emt 0:03:27]} fxg3 {[%emt 0:02:55]} 25. fxg3 {[%emt 0:01:54]} (25. Qxg3 $17 {keeps fighting.} Kh8 26. Nce2) 25... Qe5 {[%emt 0:02:50]} 26. Nce2 {[%emt 0:10:36]} Bg4 {[%emt 0:08:30] This bishop pair is nice.} 27. Bc3 {[%emt 0:00:00] [#]} Rae8 $1 {[%emt 0:02:13][%cal Rg4e2]} 28. Nf4 {[%emt 0:00:00] Nde6 is the strong threat.} Rxf4 $2 {[%emt 0:25:50]} (28... Qe4 $19 {is more deadly.} 29. Qxe4 Rxe4) 29. gxf4 $17 {[%emt 0:01:35]} Qxf4+ {[%emt 0:01:29]} 30. Kc2 {[%emt 0:10:28][%cal Bc1c2,Bc2d3,Bd3e3][%mdl 32] [#]} Re3 {[%emt 0:13:38]} ({Black should try} 30... a4 $1 $17 {White must now prevent ...Bxd4.} 31. Rf1 Qh2+ 32. Kb1 Qg2) 31. Qg6 $11 {[%emt 0:06:33][%cal Og6g7] aiming for Qxg7+!} Qe4+ {[%emt 0:06:24]} 32. Qxe4 {[%emt 0:00:32] Chess con chili.} Rxe4 {[%emt 0:00:02]} 33. Kd3 {[%emt 0:00:23]} Rf4 {[%emt 0:00:55] And now ...Bxd4 would win.} 34. Ke3 {[%emt 0:07:30]} Be5 {[%emt 0:01:27]} 35. b3 {[%emt 0:05:47]} h5 {[%emt 0:01:52]} 36. Ba1 {[%emt 0:00:43]} Kf7 {[%emt 0:01:05]} 37. Nb5 {[%emt 0:00:43]} Rf3+ {[%emt 0:00:09]} 38. Ke4 {[%emt 0:01:04]} Rf4+ {[%emt 0:00:36]} 39. Ke3 {[%emt 0:00:41]} Rf3+ {[%emt 0:00:06]} 40. Ke4 {[%emt 0:00:11] Black had all chances to win.  Weighted Error Value: White=0.18 (very precise) /Black=0.21 (precise)} 1/2-1/2

[Event "44th Chess Olympiad Open 2022"]
[Site "Chennai"]
[Date "2022.08.08"]
[Round "10.18"]
[White "Jianu, Vlad-Cristian"]
[Black "Lenaerts, Lennert"]
[Result "1/2-1/2"]
[ECO "D12"]
[WhiteElo "2511"]
[BlackElo "2379"]
[Annotator "TA"]
[PlyCount "45"]
[EventDate "2022.07.29"]
[EventType "team-tourn"]
[EventCountry "IND"]
[SourceTitle "playchess.com"]
[Source "ChessBase"]
[SourceQuality "1"]
[WhiteTeam "Romania"]
[BlackTeam "Belgium"]
[WhiteTeamCountry "ROU"]
[BlackTeamCountry "BEL"]
[TimeControl "40/5400+30:1800+30"]

{[%evp 12,45,31,32,37,28,13,5,10,6,29,16,17,7,13,7,16,20,17,26,28,0,6,0,0,0,0,20,19,-14,-10,-13,10,0,0,0]} 1. d4 {[%emt 0:00:03]} d5 {[%emt 0:00:15]} 2. c4 {[%emt 0:00:06]} c6 {[%emt 0:00:03]} 3. Nc3 {[%emt 0:00:12]} Nf6 {[%emt 0:01:17]} 4. e3 {[%emt 0:00:09]} Bf5 {[%emt 0:00:31]} 5. Nf3 {[%emt 0:02:36]} e6 {[%emt 0:00:58]} 6. Nh4 {[%emt 0:00:05]} Be4 {[%emt 0:00:11]} 7. f3 {[%emt 0:00:46]} Bg6 {[%emt 0:00:05] D12: Slav Defence: 3 Nf3 Nf6 4 e3 Bf5.} 8. Nxg6 {[%emt 0:00:29]} hxg6 {[%emt 0:00:09]} 9. Qb3 {[%emt 0:00:05]} Qc7 {[%emt 0:01:09]} 10. Bd2 $1 {[%emt 0:00:04] The main line 10.Bd2 scores better than 10.g3.} Be7 {[%emt 0:00:40]} 11. cxd5 {[%emt 0:00:45]} cxd5 {[%emt 0:00:14]} 12. O-O-O {[%emt 0:00:06]} Nc6 {[%emt 0:00:08][%cal Bb8c6,Bc6a5,Ba5c4][%mdl 32]} 13. Kb1 {[%emt 0:00:51]} a6 {[%emt 0:00:08]} 14. Rc1 {[%emt 0:00:04]} Nd7 {[%emt 0:00:07]} 15. Bd3 {[%emt 0:00:33]} Na5 {[%emt 0:00:15]} 16. Qc2 {[%emt 0:00:26][%cal Oc3d5] And now Nxd5! would win.} (16. Nxd5 $5 Qxc1+ 17. Bxc1 Nxb3 18. Nc7+ Kd8 19. Nxa8 $14) 16... Nc4 {[%emt 0:00:12] [#] The position is equal.} 17. e4 $146 {[%emt 0:00:53]} ({Predecessor:} 17. Bxc4 Qxc4 18. b3 Qc6 19. Qd3 b5 20. Ne2 Qb7 21. Qc3 Ba3 22. Rc2 Nb6 23. Qa5 {1-0 (79) Romm,M (2452)-Pivinsky,E (2490) ICCF email 2018}) 17... dxe4 {[%emt 0:00:34]} 18. Bxc4 {[%emt 0:02:44]} Qxc4 {[%emt 0:00:12]} 19. Qxe4 {[%emt 0:00:05]} Rb8 {[%emt 0:00:08]} 20. Ne2 {[%emt 0:38:12]} Qb5 {[%emt 0:18:01]} 21. Nc3 {[%emt 0:00:09]} Qc4 {[%emt 0:00:54]} 22. Ne2 {[%emt 0:00:06]} Qb5 {[%emt 0:00:04]} 23. Nc3 {[%emt 0:00:08] Weighted Error Value: White=0.06 (flawless) /Black=0.03 (flawless)} 1/2-1/2

[Event "44th Chess Olympiad Open 2022"]
[Site "Chennai"]
[Date "2022.08.08"]
[Round "10.18"]
[White "Maerevoet, Sim"]
[Black "Parligras, Mircea-Emilian"]
[Result "1-0"]
[ECO "B51"]
[WhiteElo "2409"]
[BlackElo "2576"]
[Annotator "TA"]
[PlyCount "51"]
[EventDate "2022.07.29"]
[EventType "team-tourn"]
[EventCountry "IND"]
[SourceTitle "playchess.com"]
[Source "ChessBase"]
[SourceQuality "1"]
[WhiteTeam "Belgium"]
[BlackTeam "Romania"]
[WhiteTeamCountry "BEL"]
[BlackTeamCountry "ROU"]
[TimeControl "40/5400+30:1800+30"]

{[%evp 16,51,16,0,0,0,15,27,18,13,16,12,24,2,2,0,25,18,39,47,32,22,25,33,37,34,41,10,80,83,95,48,102,99,821,820,806,796]} 1. e4 {[%emt 0:00:03]} c5 {[%emt 0:00:21]} 2. Nf3 {[%emt 0:00:08]} d6 {[%emt 0:00:03]} 3. Bb5+ {[%emt 0:00:22]} Nd7 {[%emt 0:00:08]} 4. O-O {[%emt 0:00:08]} a6 {[%emt 0:00:08]} 5. Bxd7+ {[%emt 0:00:32]} Bxd7 {[%emt 0:00:07]} 6. c3 {[%emt 0:00:08]} Nf6 {[%emt 0:01:25]} 7. Re1 {[%emt 0:00:04]} Bc6 {[%emt 0:03:43]} 8. d4 {[%emt 0:00:16]} cxd4 {[%emt 0:00:28]} 9. cxd4 {[%emt 0:02:06]} Bxe4 {[%emt 0:00:09] B51: Sicilian: Moscow Variation (3 Bb5+) without 3...Bd7.} (9... Nxe4 $2 10. d5 $18) 10. Nc3 {[%emt 0:04:51]} Bxf3 {[%emt 0:00:35]} 11. Qxf3 {[%emt 0:00:09]} e6 {[%emt 0:00:07] White has an edge.} 12. Qxb7 {[%emt 0:05:05] And now Qc6+ would win.} Qc8 {[%emt 0:00:15] Against Qc6+} 13. Qf3 {[%emt 0:02:46]} Be7 {[%emt 0:00:37]} 14. Bg5 {[%emt 0:07:40]} O-O {[%emt 0:01:09]} 15. d5 {[%emt 0:02:00]} e5 {[%emt 0:01:33]} ({Don't play} 15... Nxd5 16. Nxd5 Bxg5 17. Nb6 $14) (15... h6 $5 {[%cal Rh6g5]} 16. Bxf6 Bxf6 $11) 16. Ne4 {[%emt 0:05:24] [#]} Nxe4 $146 {[%emt 0:29:18]} ({Predecessor:} 16... Nxd5 17. Nxd6 Qe6 18. Bxe7 Nxe7 19. Ne4 Rac8 20. h3 Ng6 21. Ng5 Qb6 22. Qb3 Qc6 {½-½ (37) Muzychuk,A (2504)-Sebag,M (2530) Krasnoturinsk 2008}) 17. Bxe7 {[%emt 0:00:30]} Re8 {[%emt 0:00:03]} 18. Qxe4 {[%emt 0:03:34]} Rxe7 {[%emt 0:00:09]} 19. Rac1 $36 {[%emt 0:00:25][%mdl 2048] Black is under pressure.} Qb7 {[%emt 0:05:55]} 20. b3 {[%emt 0:01:54]} a5 {[%emt 0:03:56]} 21. Rc4 {[%emt 0:05:31]} f5 {[%emt 0:11:45]} (21... g6 $11) 22. Qxf5 $16 {[%emt 0:05:04]} Qxd5 {[%emt 0:00:05]} 23. Rc8+ {[%emt 0:02:20]} (23. Qc2 $16) 23... Re8 {[%emt 0:04:47]} (23... Rxc8 $14 24. Qxc8+ Kf7) 24. Rc7 {[%emt 0:00:34] White threatens Qd7 and mate. White is more active.} Rf8 $2 {[%emt 0:01:40][%mdl 8192] [#]} (24... Kh8 $16) 25. Qg4 $1 $18 {[%emt 0:01:32][%csl Gc7][%cal Rg4g7]} Rf7 {[%emt 0:05:36]} 26. Rd1 {[%emt 0:01:16] Weighted Error Value: White=0.10 (very precise) /Black=0.19 (very precise)} 1-0

[Event "44th Chess Olympiad Open 2022"]
[Site "Chennai"]
[Date "2022.08.08"]
[Round "10.19"]
[White "Andersen, Mads"]
[Black "Avila Pavas, Santiago"]
[Result "1-0"]
[ECO "B11"]
[WhiteElo "2587"]
[BlackElo "2453"]
[Annotator "TA"]
[PlyCount "105"]
[EventDate "2022.07.29"]
[EventType "team-tourn"]
[EventCountry "IND"]
[SourceTitle "playchess.com"]
[Source "ChessBase"]
[SourceQuality "1"]
[WhiteTeam "Denmark"]
[BlackTeam "Colombia"]
[WhiteTeamCountry "DEN"]
[BlackTeamCountry "COL"]
[TimeControl "40/5400+30:1800+30"]

{[%evp 13,105,15,29,27,25,30,23,30,25,21,31,22,29,21,20,17,19,12,20,16,19,11,15,0,16,0,22,10,28,25,29,31,164,151,156,161,158,160,177,166,210,212,239,233,235,218,230,212,273,162,162,169,186,163,172,166,166,158,181,177,176,166,175,151,162,158,175,162,166,175,170,166,230,191,210,218,232,214,496,471,554,529,989,967,1044,1027,2559,2366,2201,2054,2579,2288,1930,1860]} 1. e4 {[%emt 0:00:09]} c6 {[%emt 0:00:07]} 2. Nf3 {[%emt 0:00:15]} d5 {[%emt 0:00:07]} 3. Nc3 {[%emt 0:00:11]} Bg4 {[%emt 0:00:11]} 4. h3 {[%emt 0:00:07]} Bxf3 {[%emt 0:00:10]} 5. Qxf3 {[%emt 0:00:07]} e6 {[%emt 0:00:09]} 6. Be2 {[%emt 0:01:24]} Nf6 {[%emt 0:01:49]} 7. O-O {[%emt 0:00:37]} Nbd7 {[%emt 0:00:30]} 8. d4 {[%emt 0:02:47] B11: Caro-Kann: Two Knights Variation.} dxe4 {[%emt 0:01:16]} 9. Nxe4 {[%emt 0:00:24]} Nxe4 {[%emt 0:01:10]} 10. Qxe4 {[%emt 0:00:03] White has an edge.} Nf6 {[%emt 0:00:12]} 11. Qe3 {[%emt 0:03:40]} Be7 {[%emt 0:02:53]} 12. Rd1 {[%emt 0:06:05]} O-O {[%emt 0:01:55] [#]} 13. a4 $146 {[%emt 0:06:06]} ({Predecessor:} 13. c4 Qc7 14. b3 Bd6 15. Bb2 Rfe8 16. Bf3 Rad8 17. Bc3 Qe7 18. g3 Bb4 19. Bb2 Ba3 20. Bc3 Bb4 21. Bb2 Ba3 22. Bc3 Bb4 {½-½ (23) Kreisl,R (2391)-Poetz,F (2422) Austria 2020}) 13... a5 {[%emt 0:05:23]} 14. Qb3 {[%emt 0:00:27]} Qc7 {[%emt 0:00:13]} 15. g3 {[%emt 0:00:13]} h6 {[%emt 0:09:06]} 16. Bf3 {[%emt 0:02:33]} Rad8 {[%emt 0:00:07]} 17. Kg2 {[%emt 0:01:03]} Rd7 {[%emt 0:02:00]} 18. c3 {[%emt 0:09:07][%cal Bc2c3,Bc3c4][%mdl 32]} Rfd8 {[%emt 0:08:18]} 19. Re1 {[%emt 0:00:23]} Bd6 {[%emt 0:16:26]} 20. Re2 {[%emt 0:05:29]} Re7 {[%emt 0:10:58]} 21. Be3 {[%emt 0:05:15]} Nd5 {[%emt 0:10:17]} 22. Bd2 {[%emt 0:00:18] [#] Black must now prevent c4.} e5 {[%emt 0:00:30] Black cannot hold the game after this.} (22... Red7 $14) 23. c4 $18 {[%emt 0:15:10]} e4 {[%emt 0:17:38]} 24. Bxe4 {[%emt 0:06:34]} ({Much weaker is} 24. cxd5 $6 exf3+ 25. Qxf3 cxd5 $11) 24... Nf6 {[%emt 0:03:20]} 25. Rae1 {[%emt 0:00:37] White is more active.} Rde8 {[%emt 0:00:45][%cal Rf6e4]} 26. Qd3 {[%emt 0:04:33] [#] aiming for c5.} Qd8 {[%emt 0:01:59]} 27. Bf3 {[%emt 0:02:41]} Rxe2 {[%emt 0:02:20]} 28. Rxe2 {[%emt 0:00:15]} Rxe2 {[%emt 0:00:31]} 29. Qxe2 {[%emt 0:00:27]} ({Resist} 29. Bxe2 Be7 30. Bf3 Qb6) 29... Kf8 {[%emt 0:01:13]} 30. Qd3 {[%emt 0:04:04]} Bb4 {[%emt 0:02:04]} 31. Be3 {[%emt 0:03:17]} (31. Bxb4+ $142 axb4 32. Qd2) 31... Qd6 {[%emt 0:00:26]} 32. Qf5 {[%emt 0:02:32]} Qd7 {[%emt 0:00:33] Inhibits Qc8+.} 33. Qc2 {[%emt 0:00:28]} Qd6 {[%emt 0:00:29]} 34. Kg1 {[%emt 0:09:19]} Qd7 {[%emt 0:00:08]} 35. Bg2 {[%emt 0:00:10][%cal Bf3g2,Bg2f1,Bf1d3,Bd3f5][%mdl 32]} Qd6 {[%emt 0:00:13]} 36. Qf5 {[%emt 0:00:25] Qc8+ is the strong threat.} Qd7 {[%emt 0:00:07] Against Qc8+} 37. Qf3 {[%emt 0:00:21]} Qd6 {[%emt 0:00:25]} 38. Bf1 {[%emt 0:01:16]} Qe6 {[%emt 0:00:27]} 39. Kh2 {[%emt 0:01:04]} Ne4 {[%emt 0:02:05]} 40. Bd3 {[%emt 0:03:49]} Ng5 {[%emt 0:00:49]} 41. Qh5 {[%emt 0:32:25]} Qf6 {[%emt 0:07:47]} 42. Kg2 {[%emt 0:00:00] Against Nf3} Qd6 {[%emt 0:07:46]} (42... Ne6 $142) 43. Bf5 {[%emt 0:00:00]} ({Don't do} 43. Bxg5 $6 Qxd4 44. Bxh6 Qxd3 $16) 43... Ne6 {[%emt 0:06:45]} 44. Qg4 {[%emt 0:00:00]} Nd8 {[%emt 0:02:18]} 45. h4 {[%emt 0:00:00]} Qc7 $2 {[%emt 0:00:54]} (45... Qe7 46. Bc8 b6) 46. c5 {[%emt 0:00:00] And now Bf4 would win. White is clearly winning.} Qe7 {[%emt 0:02:32]} 47. Bf4 {[%emt 0:00:00]} Qe8 {[%emt 0:03:34]} 48. Bh7 {[%emt 0:00:00] White wants to mate with Bd6+. A strong pair of Bishops.} Qe6 {[%emt 0:00:20]} 49. Bd6+ {[%emt 0:00:00]} Ke8 {[%emt 0:00:04]} 50. Qxg7 {[%emt 0:00:00]} Kd7 {[%emt 0:01:13]} 51. Qf8 {[%emt 0:00:00][%cal Oh7f5] White threatens Bf5! and mate.} Qe8 {[%emt 0:00:09]} 52. Bf5+ {[%emt 0:00:00]} Ne6 {[%emt 0:00:07]} 53. Qxh6 {[%emt 0:00:00] Weighted Error Value: White=0.09 (flawless) /Black=0.29 (precise)} 1-0

[Event "44th Chess Olympiad Open 2022"]
[Site "Chennai"]
[Date "2022.08.08"]
[Round "10.19"]
[White "Cardoso Cardoso, Jose Gabriel"]
[Black "Bjerre, Jonas Buhl"]
[Result "0-1"]
[ECO "E32"]
[WhiteElo "2493"]
[BlackElo "2608"]
[Annotator "TA"]
[PlyCount "88"]
[EventDate "2022.07.29"]
[EventType "team-tourn"]
[EventCountry "IND"]
[SourceTitle "playchess.com"]
[Source "ChessBase"]
[SourceQuality "1"]
[WhiteTeam "Colombia"]
[BlackTeam "Denmark"]
[WhiteTeamCountry "COL"]
[BlackTeamCountry "DEN"]
[TimeControl "40/5400+30:1800+30"]

{[%evp 16,88,0,0,14,-16,-10,-17,15,0,0,0,7,0,8,12,31,24,28,8,29,31,41,41,27,-30,-42,-34,9,-8,-8,-8,-8,-8,-7,-10,0,-4,-14,-10,-8,-162,-49,-56,-43,-74,-4,-9,-7,-135,-109,-114,-114,-320,-295,-400,-363,-723,-704,-697,-645,-1090,-1064,-1487,-1360,-1163,-1276,-1518,-1390,-1134,-764,-903,-901,-975,-928]} 1. d4 {[%emt 0:00:07]} Nf6 {[%emt 0:00:10]} 2. c4 {[%emt 0:00:13]} e6 {[%emt 0:00:08]} 3. Nc3 {[%emt 0:00:13]} Bb4 {[%emt 0:00:10]} 4. Qc2 {[%emt 0:00:10]} d5 {[%emt 0:01:09]} 5. a3 {[%emt 0:00:26]} Bxc3+ {[%emt 0:00:46]} 6. Qxc3 {[%emt 0:00:04]} O-O {[%emt 0:01:03]} 7. e3 {[%emt 0:00:09]} b6 {[%emt 0:01:30]} 8. Nf3 {[%emt 0:00:06]} Bb7 {[%emt 0:01:00]} 9. b3 {[%emt 0:00:10]} Nbd7 {[%emt 0:04:22] E32: Nimzo-Indian: Classical (4 Qc2): 4...0-0.} 10. Bb2 {[%emt 0:02:01] outshines the older 10.Be2.} c5 {[%emt 0:04:00]} 11. Be2 {[%emt 0:07:18]} Rc8 {[%emt 0:04:51] [#] The position is equal.} 12. a4 $146 {[%emt 0:08:29]} ({Predecessor:} 12. O-O cxd4 13. Qxd4 Nc5 14. Nd2 dxc4 15. Bxc4 e5 16. Qxd8 Rfxd8 17. Nf3 Bxf3 18. gxf3 {1-0 (69) Dreev,A (2623)-Xiong,J (2688) Chess.com INT 2022}) 12... Ne4 {[%emt 0:15:48]} 13. Qd3 {[%emt 0:04:58]} dxc4 {[%emt 0:11:48]} 14. bxc4 {[%emt 0:00:23]} cxd4 {[%emt 0:08:24]} 15. exd4 {[%emt 0:05:45]} Qf6 {[%emt 0:05:59]} 16. O-O {[%emt 0:02:30]} Rfd8 {[%emt 0:01:35]} 17. Rfc1 {[%emt 0:14:01]} Nf8 {[%emt 0:03:08]} 18. a5 {[%emt 0:08:50]} Ng6 {[%emt 0:01:58]} 19. axb6 {[%emt 0:00:37]} axb6 {[%emt 0:01:32]} 20. Rab1 {[%emt 0:10:01]} (20. g3 $142) 20... Nf4 $11 {[%emt 0:04:46] Pair of Knights!} 21. Qe3 {[%emt 0:00:06]} Ng5 {[%emt 0:03:36]} 22. Nxg5 {[%emt 0:06:14]} Qxg5 {[%emt 0:05:06][%csl Gb7,Gf4][%cal Rg5g2]} 23. Bf3 {[%emt 0:00:25]} Bxf3 {[%emt 0:01:26]} 24. Qxf3 {[%emt 0:02:17]} h5 $40 {[%emt 0:02:33][%mdl 128] Black is up to no good.} 25. g3 {[%emt 0:06:59]} Ng6 {[%emt 0:00:58]} 26. Qe4 {[%emt 0:00:45]} h4 {[%emt 0:01:20]} 27. Rc2 {[%emt 0:04:07]} h3 {[%emt 0:02:24]} 28. Bc1 $2 {[%emt 0:02:08] [#]} (28. f4 $11 {and White stays safe.} Qh5 29. Rf1) 28... Qa5 {[%emt 0:01:55]} ({Black should try} 28... Qe5 $1 $19 {[%cal Re5e4][%mdl 512]} 29. Qxe5 (29. dxe5 $2 {gets mated.} Rd1+) 29... Nxe5) 29. Be3 {[%emt 0:00:18]} Qa4 {[%emt 0:00:55]} 30. Rbc1 {[%emt 0:00:39] [#]} Rd7 {[%emt 0:01:33]} ({Better is} 30... b5 $1 $17 31. cxb5 Rxc2 32. Qxc2 Qxb5) 31. Qg4 {[%emt 0:09:31]} b5 {[%emt 0:01:09]} 32. c5 {[%emt 0:02:10]} (32. Qxh3 $11 Rxc4 33. Rxc4 bxc4 34. Rb1) 32... Ne5 $1 $17 {[%emt 0:01:48]} 33. Qxh3 {[%emt 0:00:03] [#]} Nd3 {[%emt 0:00:58] Black is more active.} ({Don't play} 33... Nf3+ $6 34. Kh1 $11) 34. c6 $2 {[%emt 0:03:51]} (34. Qg4 $17) 34... Rdc7 $19 {[%emt 0:01:19]} 35. Rc5 {[%emt 0:01:06][%cal Oc5h5] Rh5! is the strong threat.} Nxc1 {[%emt 0:02:29]} 36. Rh5 $2 {[%emt 0:00:07]} (36. Rxc1 Rxc6 37. Rb1) 36... Qd1+ {[%emt 0:00:26] Black is clearly winning.} 37. Kg2 {[%emt 0:00:03]} f5 {[%emt 0:00:41] White must now prevent ...Nd3.} 38. Bxc1 {[%emt 0:01:36]} Qxc1 {[%emt 0:01:03]} 39. Rh8+ {[%emt 0:00:11]} Kf7 {[%emt 0:00:04]} 40. Qh5+ {[%emt 0:00:23]} Kf6 {[%emt 0:01:24]} 41. d5 {[%emt 0:30:37]} exd5 {[%emt 0:06:31]} 42. Qh4+ {[%emt 0:00:00]} Qg5 {[%emt 0:01:51]} 43. Qd4+ {[%emt 0:00:00]} Kg6 {[%emt 0:00:46]} 44. h4 {[%emt 0:00:00]} Qf6 {[%emt 0:02:09] Weighted Error Value: White=0.79/Black=0.23 (precise)} ({Weaker is} 44... Rxh8 45. hxg5 Rxc6 46. Qxd5 $11) 0-1